[Event "56th Biel Festival Rapid 2023"]
[Site "Biel"]
[Date "2024.04.13"]
[Round "2.2"]
[White "Vianin, Pascal"]
[Black "Erdos, Viktor"]
[Result "*"]
[WhiteElo "2051"]
[BlackElo "2571"]
[PlyCount "66"]
[EventDate "2023.07.16"]
[EventType "swiss"]
[EventCountry "SUI"]
[TimeControl "900+5"]

1. e4 {[%emt 0:00:06]} e5 {[%emt 0:00:07]} 2. Nf3 {[%emt 0:00:04]} Nc6 {[%emt 0:00:01]} 3. Bb5 {[%emt 0:00:02]} a6 {[%emt 0:00:02]} 4. Bxc6 {[%emt 0:00:01]} dxc6 {[%emt 0:00:02]} 5. O-O {[%emt 0:00:03]} Qf6 {[%emt 0:00:02]} 6. d4 {[%emt 0:00:08]} exd4 {[%emt 0:00:02]} 7. e5 {[%emt 0:00:49]} Qg6 {[%emt 0:00:02]} 8. Qxd4 {[%emt 0:00:41]} Bg4 {[%emt 0:02:37]} 9. Nh4 {[%emt 0:02:14]} Qh5 {[%emt 0:00:11]} 10. h3 {[%emt 0:00:25]} Be6 {[%emt 0:00:04]} 11. Nf3 {[%emt 0:00:20]} Bxh3 {[%emt 0:01:51]} 12. Bf4 {[%emt 0:02:31]} Qg4 {[%emt 0:03:39]} 13. Bg3 {[%emt 0:00:27]} Qxd4 {[%emt 0:00:02]} 14. Nxd4 {[%emt 0:00:01]} Bg4 {[%emt 0:00:02]} 15. e6 {[%emt 0:01:37]} O-O-O {[%emt 0:00:32]} 16. exf7 {[%emt 0:00:08]} Nh6 {[%emt 0:00:13]} 17. c3 {[%emt 0:02:43]} c5 {[%emt 0:00:38]} 18. Nc2 {[%emt 0:00:29]} Nxf7 {[%emt 0:00:44]} 19. Ne3 {[%emt 0:00:02]} Be6 {[%emt 0:00:43]} 20. Na3 {[%emt 0:00:15]} Be7 {[%emt 0:00:10]} 21. Rad1 {[%emt 0:00:15]} Bxa2 {[%emt 0:01:06]} 22. Nac4 {[%emt 0:00:22]} Rxd1 {[%emt 0:00:34]} 23. Rxd1 {[%emt 0:00:02]} Rd8 {[%emt 0:00:09]} 24. Rxd8+ {[%emt 0:00:07]} Bxd8 {[%emt 0:00:33]} 25. f4 {[%emt 0:00:42]} g6 {[%emt 0:00:16]} 26. Ne5 {[%emt 0:00:36]} Nxe5 {[%emt 0:00:17]} 27. fxe5 {[%emt 0:00:02]} Kd7 {[%emt 0:00:06]} 28. Kf2 {[%emt 0:00:18]} Ke6 {[%emt 0:00:04]} 29. Kf3 {[%emt 0:00:57]} h5 {[%emt 0:00:03]} 30. Ke4 {[%emt 0:00:19]} Bb1+ {[%emt 0:00:19]} 31. Kf3 {[%emt 0:00:23]} b5 {[%emt 0:00:09]} 32. b3 {[%emt 0:00:12]} a5 {[%emt 0:00:04]} 33. c4 {[%emt 0:00:03]} a4 {[%emt 0:00:04]} *

[Event "56th Biel Festival Rapid 2023"]
[Site "Biel"]
[Date "2024.04.13"]
[Round "2.3"]
[White "Yuffa, Daniil"]
[Black "Richard, Emma"]
[Result "1-0"]
[WhiteElo "2603"]
[BlackElo "2157"]
[PlyCount "65"]
[EventDate "2023.07.16"]
[EventType "swiss"]
[EventCountry "SUI"]
[TimeControl "900+5"]

1. e4 {[%emt 0:00:05]} c5 {[%emt 0:00:02]} 2. Nf3 {[%emt 0:00:03]} Nc6 {[%emt 0:00:01]} 3. Bb5 {[%emt 0:00:03]} d6 {[%emt 0:00:02]} 4. c3 {[%emt 0:00:17]} Bd7 {[%emt 0:00:02]} 5. d4 {[%emt 0:00:34]} cxd4 {[%emt 0:01:03]} 6. cxd4 {[%emt 0:00:11]} Nf6 {[%emt 0:00:03]} 7. Nc3 {[%emt 0:00:08]} a6 {[%emt 0:01:10]} 8. Be2 {[%emt 0:00:48]} e6 {[%emt 0:00:21]} 9. Bf4 {[%emt 0:00:29]} Be7 {[%emt 0:00:38]} 10. O-O {[%emt 0:00:27]} O-O {[%emt 0:00:02]} 11. d5 {[%emt 0:00:05]} Na7 {[%emt 0:00:29]} 12. dxe6 {[%emt 0:01:49]} Bxe6 {[%emt 0:00:01]} 13. Nd4 {[%emt 0:00:06]} Bd7 {[%emt 0:01:43]} 14. Bc4 {[%emt 0:00:41]} b5 {[%emt 0:02:35]} 15. Bb3 {[%emt 0:00:16]} Nc6 {[%emt 0:00:27]} 16. Re1 {[%emt 0:00:26]} Ne5 {[%emt 0:00:13]} 17. Nf5 {[%emt 0:01:07]} Be6 {[%emt 0:00:57]} 18. Bxe5 {[%emt 0:01:14]} dxe5 {[%emt 0:00:02]} 19. Bxe6 {[%emt 0:00:05]} fxe6 {[%emt 0:00:02]} 20. Qb3 {[%emt 0:00:04]} Nd5 {[%emt 0:02:10]} 21. Nxd5 {[%emt 0:00:27]} exd5 {[%emt 0:00:01]} 22. Qxd5+ {[%emt 0:00:26]} Kh8 {[%emt 0:00:05]} 23. Rad1 {[%emt 0:01:07]} Bf6 {[%emt 0:00:33]} 24. g3 {[%emt 0:00:45]} Qa5 {[%emt 0:00:04]} 25. Kg2 {[%emt 0:01:03]} Rad8 {[%emt 0:00:03]} 26. Qb3 {[%emt 0:00:04]} Qb6 {[%emt 0:00:48]} 27. Rxd8 {[%emt 0:00:12]} Bxd8 {[%emt 0:00:10]} 28. Re2 {[%emt 0:00:12]} a5 {[%emt 0:00:19]} 29. Qd5 {[%emt 0:00:27]} Qf6 {[%emt 0:00:27]} 30. Qd6 {[%emt 0:00:53]} Qf7 {[%emt 0:00:52]} 31. Qxe5 {[%emt 0:00:19]} Bf6 {[%emt 0:00:03]} 32. Qxb5 {[%emt 0:00:21]} Qxa2 {[%emt 0:00:02]} 33. e5 {[%emt 0:00:12]} 1-0

[Event "56th Biel Festival Rapid 2023"]
[Site "Biel"]
[Date "2024.04.13"]
[Round "2.4"]
[White "Toenz, Arthur"]
[Black "Riff, Jean-Noel"]
[Result "1/2-1/2"]
[WhiteElo "2040"]
[BlackElo "2401"]
[PlyCount "181"]
[EventDate "2023.07.16"]
[EventType "swiss"]
[EventCountry "SUI"]
[TimeControl "900+5"]

1. d4 {[%emt 0:00:05]} Nf6 {[%emt 0:00:01]} 2. Bf4 {[%emt 0:00:04]} e6 {[%emt 0:00:02]} 3. e3 {[%emt 0:00:01]} d5 {[%emt 0:00:05]} 4. Nd2 {[%emt 0:00:02]} Bd6 {[%emt 0:00:00]} 5. Bg3 {[%emt 0:00:02]} O-O {[%emt 0:00:00]} 6. Ngf3 {[%emt 0:00:01]} c5 {[%emt 0:00:01]} 7. c3 {[%emt 0:00:03]} Qc7 {[%emt 0:00:01]} 8. Bd3 {[%emt 0:00:09]} Nbd7 {[%emt 0:00:02]} 9. O-O {[%emt 0:00:15]} e5 {[%emt 0:00:04]} 10. dxe5 {[%emt 0:00:01]} Nxe5 {[%emt 0:00:02]} 11. Nxe5 {[%emt 0:00:02]} Bxe5 {[%emt 0:00:01]} 12. Qc2 {[%emt 0:00:21]} h6 {[%emt 0:00:18]} 13. c4 {[%emt 0:00:22]} b6 {[%emt 0:00:26]} 14. cxd5 {[%emt 0:00:13]} Bxg3 {[%emt 0:00:08]} 15. hxg3 {[%emt 0:00:04]} Nxd5 {[%emt 0:00:02]} 16. a3 {[%emt 0:00:13]} Bb7 {[%emt 0:00:05]} 17. Be4 {[%emt 0:00:07]} Rad8 {[%emt 0:00:07]} 18. Rfd1 {[%emt 0:00:24]} Qe7 {[%emt 0:00:19]} 19. Rac1 {[%emt 0:00:21]} Rfe8 {[%emt 0:02:31]} 20. Bxd5 {[%emt 0:00:20]} Rxd5 {[%emt 0:00:07]} 21. Nf3 {[%emt 0:00:09]} Red8 {[%emt 0:00:03]} 22. Rxd5 {[%emt 0:00:05]} Rxd5 {[%emt 0:00:03]} 23. Qa4 {[%emt 0:00:32]} a6 {[%emt 0:00:15]} 24. Qf4 {[%emt 0:00:27]} Qd6 {[%emt 0:00:04]} 25. b4 {[%emt 0:00:52]} Qxf4 {[%emt 0:01:00]} 26. gxf4 {[%emt 0:00:03]} cxb4 {[%emt 0:00:01]} 27. axb4 {[%emt 0:00:02]} Rb5 {[%emt 0:00:36]} 28. Rc4 {[%emt 0:00:03]} Bd5 {[%emt 0:01:20]} 29. Rd4 {[%emt 0:00:04]} a5 {[%emt 0:00:01]} 30. bxa5 {[%emt 0:00:14]} bxa5 {[%emt 0:00:01]} 31. Ra4 {[%emt 0:00:30]} Bxf3 {[%emt 0:00:22]} 32. gxf3 {[%emt 0:00:01]} Kf8 {[%emt 0:00:01]} 33. e4 {[%emt 0:00:17]} Ke7 {[%emt 0:00:01]} 34. Kg2 {[%emt 0:00:30]} Kd6 {[%emt 0:00:03]} 35. f5 {[%emt 0:00:13]} Kc6 {[%emt 0:00:12]} 36. f4 {[%emt 0:00:37]} f6 {[%emt 0:00:14]} 37. Rd4 {[%emt 0:00:26]} Rb4 {[%emt 0:00:45]} 38. Rd5 {[%emt 0:00:06]} Kb6 {[%emt 0:00:03]} 39. e5 {[%emt 0:00:26]} a4 {[%emt 0:01:48]} 40. e6 {[%emt 0:00:11]} Kc6 {[%emt 0:02:02]} 41. Rd8 {[%emt 0:03:24]} Rb7 {[%emt 0:00:01]} 42. Rd4 {[%emt 0:00:44]} Ra7 {[%emt 0:00:02]} 43. Kf3 {[%emt 0:00:59]} a3 {[%emt 0:00:01]} 44. Rd2 {[%emt 0:00:43]} a2 {[%emt 0:00:16]} 45. e7 {[%emt 0:00:04]} Rxe7 {[%emt 0:00:04]} 46. Rxa2 {[%emt 0:00:01]} Kd7 {[%emt 0:00:28]} 47. Kg4 {[%emt 0:00:26]} Ke8 {[%emt 0:00:01]} 48. f3 {[%emt 0:00:07]} Kf7 {[%emt 0:00:01]} 49. Ra8 {[%emt 0:00:10]} Re1 {[%emt 0:00:02]} 50. Ra7+ {[%emt 0:00:03]} Kg8 {[%emt 0:00:03]} 51. Rb7 {[%emt 0:00:24]} Rg1+ {[%emt 0:00:02]} 52. Kh3 {[%emt 0:00:06]} Kh7 {[%emt 0:00:05]} 53. Rc7 {[%emt 0:00:08]} Ra1 {[%emt 0:00:13]} 54. Rc5 {[%emt 0:00:15]} Ra4 {[%emt 0:00:05]} 55. Kg4 {[%emt 0:00:07]} h5+ {[%emt 0:00:02]} 56. Kxh5 {[%emt 0:00:01]} Rxf4 {[%emt 0:00:01]} 57. Rb5 {[%emt 0:00:05]} Rxf3 {[%emt 0:00:01]} 58. Kg4 {[%emt 0:00:04]} Rf1 {[%emt 0:00:02]} 59. Rb2 {[%emt 0:00:09]} Rg1+ {[%emt 0:00:10]} 60. Kf4 {[%emt 0:00:05]} Rh1 {[%emt 0:00:07]} 61. Kg4 {[%emt 0:00:06]} Kh6 {[%emt 0:00:02]} 62. Rc2 {[%emt 0:00:10]} Rg1+ {[%emt 0:00:25]} 63. Kf4 {[%emt 0:00:03]} Kh7 {[%emt 0:00:05]} 64. Rc8 {[%emt 0:00:10]} Ra1 {[%emt 0:00:00]} 65. Rb8 {[%emt 0:00:09]} Ra4+ {[%emt 0:00:00]} 66. Kf3 {[%emt 0:00:16]} Kh6 {[%emt 0:00:00]} 67. Rg8 {[%emt 0:00:09]} Rb4 {[%emt 0:00:02]} 68. Kg3 {[%emt 0:00:07]} Kg5 {[%emt 0:00:33]} 69. Rxg7+ {[%emt 0:00:01]} Kxf5 {[%emt 0:00:06]} 70. Rc7 {[%emt 0:00:24]} Rb3+ {[%emt 0:00:00]} 71. Kf2 {[%emt 0:00:02]} Kg5 {[%emt 0:00:00]} 72. Rc5+ {[%emt 0:00:21]} f5 {[%emt 0:00:04]} 73. Rc8 {[%emt 0:00:05]} Kg4 {[%emt 0:00:00]} 74. Ra8 {[%emt 0:00:10]} Rb2+ {[%emt 0:00:00]} 75. Kf1 {[%emt 0:00:05]} f4 {[%emt 0:00:04]} 76. Ra3 {[%emt 0:00:09]} Rc2 {[%emt 0:00:00]} 77. Rb3 {[%emt 0:00:03]} Kf5 {[%emt 0:00:00]} 78. Ra3 {[%emt 0:00:05]} Rd2 {[%emt 0:00:02]} 79. Rb3 {[%emt 0:00:01]} Ke4 {[%emt 0:00:00]} 80. Ra3 {[%emt 0:00:05]} Rd1+ {[%emt 0:00:05]} 81. Kf2 {[%emt 0:00:03]} Rd2+ {[%emt 0:00:02]} 82. Kf1 {[%emt 0:00:04]} Rd3 {[%emt 0:00:05]} 83. Ra2 {[%emt 0:00:20]} Rb3 {[%emt 0:00:06]} 84. Rc2 {[%emt 0:00:09]} Kf3 {[%emt 0:00:07]} 85. Rf2+ {[%emt 0:00:03]} Kg4 {[%emt 0:00:01]} 86. Rg2+ {[%emt 0:00:10]} Rg3 {[%emt 0:00:01]} 87. Ra2 {[%emt 0:00:03]} Rb3 {[%emt 0:00:10]} 88. Rg2+ {[%emt 0:00:02]} Kh3 {[%emt 0:00:02]} 89. Rc2 {[%emt 0:00:05]} f3 {[%emt 0:00:01]} 90. Rc8 {[%emt 0:00:10]} Kg3 {[%emt 0:00:06]} 91. Rg8+ {[%emt 0:00:01]} 1/2-1/2

[Event "56th Biel Festival Rapid 2023"]
[Site "Biel"]
[Date "2024.04.13"]
[Round "2.5"]
[White "Rodrigue-Lemieux, Shawn"]
[Black "Haugner, Jan"]
[Result "1-0"]
[WhiteElo "2495"]
[BlackElo "2066"]
[PlyCount "69"]
[EventDate "2023.07.16"]
[EventType "swiss"]
[EventCountry "SUI"]
[TimeControl "900+5"]

1. c4 {[%emt 0:00:04]} e6 {[%emt 0:00:01]} 2. Nf3 {[%emt 0:00:04]} d5 {[%emt 0:00:02]} 3. b3 {[%emt 0:00:02]} Nf6 {[%emt 0:00:02]} 4. Bb2 {[%emt 0:00:02]} Be7 {[%emt 0:00:07]} 5. e3 {[%emt 0:00:04]} O-O {[%emt 0:00:25]} 6. Nc3 {[%emt 0:00:05]} b6 {[%emt 0:00:32]} 7. Be2 {[%emt 0:00:14]} Bb7 {[%emt 0:00:02]} 8. g4 {[%emt 0:01:23]} dxc4 {[%emt 0:01:24]} 9. bxc4 {[%emt 0:00:09]} c5 {[%emt 0:00:34]} 10. Rg1 {[%emt 0:00:26]} Nc6 {[%emt 0:00:48]} 11. a3 {[%emt 0:00:03]} Qc7 {[%emt 0:00:43]} 12. Qc2 {[%emt 0:00:06]} Rfd8 {[%emt 0:00:32]} 13. h4 {[%emt 0:00:14]} Nd7 {[%emt 0:00:45]} 14. O-O-O {[%emt 0:00:33]} Nce5 {[%emt 0:01:09]} 15. Ng5 {[%emt 0:00:09]} Bxg5 {[%emt 0:00:46]} 16. hxg5 {[%emt 0:00:03]} Nf3 {[%emt 0:00:09]} 17. Rh1 {[%emt 0:00:44]} g6 {[%emt 0:02:15]} 18. Ne4 {[%emt 0:01:52]} Bxe4 {[%emt 0:00:42]} 19. Qxe4 {[%emt 0:00:02]} Nxg5 {[%emt 0:00:16]} 20. Qg2 {[%emt 0:00:03]} e5 {[%emt 0:04:44]} 21. Qh2 {[%emt 0:00:05]} Nf8 {[%emt 0:00:25]} 22. Bxe5 {[%emt 0:00:03]} Qd7 {[%emt 0:00:12]} 23. Qh6 {[%emt 0:00:21]} Nge6 {[%emt 0:00:11]} 24. Bf6 {[%emt 0:00:13]} Qa4 {[%emt 0:00:03]} 25. Kb2 {[%emt 0:00:17]} b5 {[%emt 0:00:04]} 26. cxb5 {[%emt 0:05:13]} c4 {[%emt 0:00:01]} 27. Kc1 {[%emt 0:00:07]} Qxa3+ {[%emt 0:00:07]} 28. Bb2 {[%emt 0:00:01]} Qa4 {[%emt 0:00:04]} 29. Qh4 {[%emt 0:00:26]} Rab8 {[%emt 0:00:03]} 30. Qf6 {[%emt 0:00:04]} c3 {[%emt 0:00:07]} 31. Bxc3 {[%emt 0:00:28]} Qa3+ {[%emt 0:00:05]} 32. Bb2 {[%emt 0:00:23]} Qc5+ {[%emt 0:00:10]} 33. Kb1 {[%emt 0:00:02]} Nd4 {[%emt 0:00:05]} 34. exd4 {[%emt 0:00:38]} Qb4 {[%emt 0:00:04]} 35. d5 {[%emt 0:00:11]} 1-0

[Event "56th Biel Festival Rapid 2023"]
[Site "Biel"]
[Date "2024.04.13"]
[Round "2.6"]
[White "Schweizer, Samuel"]
[Black "Bharath Subramaniyam H"]
[Result "0-1"]
[WhiteElo "2084"]
[BlackElo "2488"]
[PlyCount "74"]
[EventDate "2023.07.16"]
[EventType "swiss"]
[EventCountry "SUI"]
[TimeControl "900+5"]

1. e4 {[%emt 0:00:11]} c5 {[%emt 0:00:02]} 2. Nf3 {[%emt 0:00:24]} Nf6 {[%emt 0:00:10]} 3. d3 {[%emt 0:00:29]} Nc6 {[%emt 0:00:10]} 4. Bg5 {[%emt 0:00:24]} d5 {[%emt 0:01:59]} 5. Nbd2 {[%emt 0:00:45]} e6 {[%emt 0:00:30]} 6. h3 {[%emt 0:00:09]} Be7 {[%emt 0:00:05]} 7. Be2 {[%emt 0:00:20]} O-O {[%emt 0:00:12]} 8. O-O {[%emt 0:00:09]} b5 {[%emt 0:00:18]} 9. a4 {[%emt 0:00:03]} b4 {[%emt 0:00:10]} 10. c3 {[%emt 0:00:13]} h6 {[%emt 0:01:10]} 11. Bh4 {[%emt 0:01:05]} Ba6 {[%emt 0:00:15]} 12. e5 {[%emt 0:00:38]} Nd7 {[%emt 0:00:32]} 13. Bxe7 {[%emt 0:00:03]} Qxe7 {[%emt 0:00:01]} 14. d4 {[%emt 0:00:05]} Bxe2 {[%emt 0:00:41]} 15. Qxe2 {[%emt 0:00:00]} Rab8 {[%emt 0:00:17]} 16. Rab1 {[%emt 0:01:19]} c4 {[%emt 0:00:16]} 17. Rfc1 {[%emt 0:00:11]} Na5 {[%emt 0:02:16]} 18. Qe3 {[%emt 0:00:23]} Rb7 {[%emt 0:02:27]} 19. Ne1 {[%emt 0:00:37]} Rfb8 {[%emt 0:00:11]} 20. Nc2 {[%emt 0:00:30]} bxc3 {[%emt 0:00:46]} 21. bxc3 {[%emt 0:00:01]} Nb6 {[%emt 0:00:01]} 22. Rb5 {[%emt 0:00:56]} Nb3 {[%emt 0:01:15]} 23. Nxb3 {[%emt 0:00:40]} cxb3 {[%emt 0:00:01]} 24. Rxb3 {[%emt 0:00:17]} Nxa4 {[%emt 0:01:00]} 25. Rxb7 {[%emt 0:00:03]} Qxb7 {[%emt 0:00:05]} 26. Na3 {[%emt 0:02:01]} Rc8 {[%emt 0:00:56]} 27. c4 {[%emt 0:00:31]} dxc4 {[%emt 0:00:15]} 28. Rxc4 {[%emt 0:00:06]} Nb6 {[%emt 0:00:14]} 29. Rb4 {[%emt 0:00:15]} Qa6 {[%emt 0:00:17]} 30. Rb3 {[%emt 0:00:23]} Nd5 {[%emt 0:00:02]} 31. Qd3 {[%emt 0:00:04]} Qa5 {[%emt 0:00:11]} 32. Qb1 {[%emt 0:00:22]} Nb6 {[%emt 0:00:44]} 33. Nb5 {[%emt 0:00:14]} Qd2 {[%emt 0:00:01]} 34. Nxa7 {[%emt 0:00:05]} Rc1+ {[%emt 0:00:02]} 35. Qxc1 {[%emt 0:00:19]} Qxc1+ {[%emt 0:00:01]} 36. Kh2 {[%emt 0:00:02]} Qf4+ {[%emt 0:00:04]} 37. Kg1 {[%emt 0:00:01]} Qxd4 {[%emt 0:00:01]} 0-1

[Event "56th Biel Festival Rapid 2023"]
[Site "Biel"]
[Date "2024.04.13"]
[Round "2.7"]
[White "Pranav Anand"]
[Black "Piazza, Carlo"]
[Result "1-0"]
[WhiteElo "2510"]
[BlackElo "2106"]
[PlyCount "49"]
[EventDate "2023.07.16"]
[EventType "swiss"]
[EventCountry "SUI"]
[TimeControl "900+5"]

1. d4 {[%emt 0:00:03]} Nf6 {[%emt 0:00:01]} 2. c4 {[%emt 0:00:01]} g6 {[%emt 0:00:02]} 3. h4 {[%emt 0:00:03]} Bg7 {[%emt 0:00:08]} 4. Nc3 {[%emt 0:00:05]} d5 {[%emt 0:00:06]} 5. h5 {[%emt 0:00:07]} c6 {[%emt 0:00:24]} 6. h6 {[%emt 0:00:11]} Bf8 {[%emt 0:00:01]} 7. cxd5 {[%emt 0:00:30]} cxd5 {[%emt 0:00:13]} 8. Bf4 {[%emt 0:00:11]} e6 {[%emt 0:03:14]} 9. e3 {[%emt 0:00:04]} Be7 {[%emt 0:00:42]} 10. Nf3 {[%emt 0:00:19]} O-O {[%emt 0:00:11]} 11. Bd3 {[%emt 0:00:05]} Nc6 {[%emt 0:00:06]} 12. O-O {[%emt 0:00:24]} Bd7 {[%emt 0:00:51]} 13. a3 {[%emt 0:00:28]} Rc8 {[%emt 0:00:49]} 14. Rc1 {[%emt 0:00:03]} Na5 {[%emt 0:00:12]} 15. Ne5 {[%emt 0:00:12]} Nc4 {[%emt 0:00:22]} 16. Bxc4 {[%emt 0:01:52]} dxc4 {[%emt 0:00:02]} 17. d5 {[%emt 0:00:13]} Nxd5 {[%emt 0:01:01]} 18. Nxd5 {[%emt 0:00:04]} exd5 {[%emt 0:00:01]} 19. Qxd5 {[%emt 0:00:02]} Be6 {[%emt 0:00:07]} 20. Qxb7 {[%emt 0:00:31]} Rb8 {[%emt 0:05:11]} 21. Qxa7 {[%emt 0:00:10]} Ra8 {[%emt 0:02:09]} 22. Qb7 {[%emt 0:00:22]} Rb8 {[%emt 0:00:06]} 23. Qe4 {[%emt 0:00:34]} Rxb2 {[%emt 0:00:12]} 24. Nc6 {[%emt 0:00:06]} Qe8 {[%emt 0:00:19]} 25. Qd4 {[%emt 0:00:10]} 1-0

[Event "56th Biel Festival Rapid 2023"]
[Site "Biel"]
[Date "2024.04.13"]
[Round "2.8"]
[White "Mikavica, Dragoljub"]
[Black "Saraci, Nderim"]
[Result "0-1"]
[WhiteElo "2041"]
[BlackElo "2472"]
[PlyCount "54"]
[EventDate "2023.07.16"]
[EventType "swiss"]
[EventCountry "SUI"]
[TimeControl "900+5"]

1. e4 {[%emt 0:00:05]} e5 {[%emt 0:00:05]} 2. Nf3 {[%emt 0:00:05]} Nc6 {[%emt 0:00:01]} 3. Bb5 {[%emt 0:00:03]} a6 {[%emt 0:00:01]} 4. Ba4 {[%emt 0:00:03]} g6 {[%emt 0:00:02]} 5. O-O {[%emt 0:00:03]} Bg7 {[%emt 0:00:00]} 6. c3 {[%emt 0:00:03]} d6 {[%emt 0:00:03]} 7. Re1 {[%emt 0:00:05]} Bd7 {[%emt 0:00:02]} 8. h3 {[%emt 0:00:14]} Nf6 {[%emt 0:00:02]} 9. d4 {[%emt 0:00:27]} O-O {[%emt 0:00:10]} 10. Nbd2 {[%emt 0:00:05]} Re8 {[%emt 0:00:37]} 11. Bc2 {[%emt 0:00:15]} Qe7 {[%emt 0:00:48]} 12. Nf1 {[%emt 0:02:07]} Nh5 {[%emt 0:01:41]} 13. d5 {[%emt 0:00:25]} Na7 {[%emt 0:00:48]} 14. Be3 {[%emt 0:00:52]} Nc8 {[%emt 0:01:08]} 15. Qd2 {[%emt 0:02:04]} b5 {[%emt 0:00:10]} 16. Bg5 {[%emt 0:00:11]} Qf8 {[%emt 0:00:40]} 17. g4 {[%emt 0:00:08]} Nf6 {[%emt 0:00:22]} 18. Kg2 {[%emt 0:00:42]} Nb6 {[%emt 0:00:41]} 19. Ne3 {[%emt 0:00:08]} c6 {[%emt 0:00:36]} 20. Bxf6 {[%emt 0:00:42]} Bxf6 {[%emt 0:01:51]} 21. Rad1 {[%emt 0:00:02]} Red8 {[%emt 0:00:26]} 22. h4 {[%emt 0:01:34]} cxd5 {[%emt 0:00:16]} 23. exd5 {[%emt 0:00:30]} Rac8 {[%emt 0:00:12]} 24. h5 {[%emt 0:00:36]} Qe7 {[%emt 0:00:34]} 25. hxg6 {[%emt 0:00:57]} hxg6 {[%emt 0:00:12]} 26. Rh1 {[%emt 0:00:03]} Nc4 {[%emt 0:00:28]} 27. Rdg1 {[%emt 0:00:32]} Nxd2 {[%emt 0:02:29]} 0-1

[Event "56th Biel Festival Rapid 2023"]
[Site "Biel"]
[Date "2024.04.13"]
[Round "2.9"]
[White "Huang, Renjie"]
[Black "Akshit Kumar J"]
[Result "1-0"]
[WhiteElo "2445"]
[BlackElo "2105"]
[PlyCount "109"]
[EventDate "2023.07.16"]
[EventType "swiss"]
[EventCountry "SUI"]
[TimeControl "900+5"]

1. e4 {[%emt 0:00:02]} e5 {[%emt 0:00:02]} 2. Nf3 {[%emt 0:00:02]} Nf6 {[%emt 0:00:02]} 3. Nxe5 {[%emt 0:00:01]} d6 {[%emt 0:00:01]} 4. Nf3 {[%emt 0:00:01]} Nxe4 {[%emt 0:00:01]} 5. c4 {[%emt 0:00:06]} Nc6 {[%emt 0:00:08]} 6. d4 {[%emt 0:00:07]} d5 {[%emt 0:00:10]} 7. Nc3 {[%emt 0:00:05]} Bb4 {[%emt 0:00:11]} 8. Qc2 {[%emt 0:00:00]} Qe7 {[%emt 0:03:32]} 9. Be3 {[%emt 0:00:13]} Bf5 {[%emt 0:00:36]} 10. Qc1 {[%emt 0:01:33]} Nxc3 {[%emt 0:00:40]} 11. bxc3 {[%emt 0:00:02]} Ba3 {[%emt 0:00:11]} 12. Qd2 {[%emt 0:00:05]} Nb4 {[%emt 0:00:05]} 13. Rd1 {[%emt 0:01:21]} Nc2+ {[%emt 0:02:33]} 14. Ke2 {[%emt 0:00:05]} dxc4 {[%emt 0:00:07]} 15. Ne5 {[%emt 0:00:00]} Qe6 {[%emt 0:00:46]} 16. f4 {[%emt 0:02:21]} f6 {[%emt 0:02:30]} 17. d5 {[%emt 0:00:02]} Bg4+ {[%emt 0:00:07]} 18. Nxg4 {[%emt 0:00:08]} Qxg4+ {[%emt 0:00:02]} 19. Kf2 {[%emt 0:00:04]} Nxe3 {[%emt 0:00:45]} 20. Qxe3+ {[%emt 0:00:02]} Kf8 {[%emt 0:00:48]} 21. Be2 {[%emt 0:00:19]} Qd7 {[%emt 0:00:27]} 22. Bxc4 {[%emt 0:00:18]} b6 {[%emt 0:00:22]} 23. Qe6 {[%emt 0:00:28]} Rd8 {[%emt 0:00:44]} 24. f5 {[%emt 0:00:27]} Qd6 {[%emt 0:00:15]} 25. g3 {[%emt 0:00:41]} Qc5+ {[%emt 0:00:44]} 26. Rd4 {[%emt 0:00:01]} Re8 {[%emt 0:00:01]} 27. Qd7 {[%emt 0:00:20]} Qe7 {[%emt 0:00:32]} 28. Qxe7+ {[%emt 0:00:41]} Rxe7 {[%emt 0:00:01]} 29. Kf3 {[%emt 0:00:04]} Re5 {[%emt 0:00:08]} 30. g4 {[%emt 0:00:24]} Bd6 {[%emt 0:00:06]} 31. Re4 {[%emt 0:00:47]} Rxe4 {[%emt 0:00:15]} 32. Kxe4 {[%emt 0:00:01]} Be5 {[%emt 0:00:05]} 33. Bb5 {[%emt 0:00:58]} Ke7 {[%emt 0:00:11]} 34. c4 {[%emt 0:00:10]} Kd6 {[%emt 0:00:01]} 35. h4 {[%emt 0:00:01]} Kc5 {[%emt 0:00:33]} 36. g5 {[%emt 0:00:08]} a6 {[%emt 0:00:15]} 37. Bd7 {[%emt 0:00:55]} Kxc4 {[%emt 0:00:02]} 38. Rc1+ {[%emt 0:00:09]} Kb4 {[%emt 0:00:05]} 39. a4 {[%emt 0:00:16]} Rd8 {[%emt 0:00:06]} 40. Bc6 {[%emt 0:00:00]} Kb3 {[%emt 0:00:07]} 41. Rg1 {[%emt 0:00:10]} Bc3 {[%emt 0:00:05]} 42. Kd3 {[%emt 0:00:10]} Be5 {[%emt 0:00:01]} 43. Rb1+ {[%emt 0:00:05]} Ka3 {[%emt 0:00:02]} 44. Kc4 {[%emt 0:00:07]} fxg5 {[%emt 0:00:10]} 45. hxg5 {[%emt 0:00:01]} Rf8 {[%emt 0:00:03]} 46. Bd7 {[%emt 0:00:13]} h6 {[%emt 0:00:02]} 47. g6 {[%emt 0:00:40]} Rd8 {[%emt 0:00:07]} 48. Rb3+ {[%emt 0:00:09]} Ka2 {[%emt 0:00:01]} 49. Be6 {[%emt 0:00:01]} Bf6 {[%emt 0:00:13]} 50. Kb4 {[%emt 0:00:24]} h5 {[%emt 0:00:07]} 51. Rh3 {[%emt 0:00:06]} Be7+ {[%emt 0:00:04]} 52. d6+ {[%emt 0:00:03]} Kb2 {[%emt 0:00:05]} 53. Rh2+ {[%emt 0:00:02]} Kb1 {[%emt 0:00:03]} 54. dxe7 {[%emt 0:00:02]} a5+ {[%emt 0:00:08]} 55. Kc3 {[%emt 0:00:02]} 1-0

[Event "56th Biel Festival Rapid 2023"]
[Site "Biel"]
[Date "2024.04.13"]
[Round "2.10"]
[White "Meier, Peter"]
[Black "Sukandar, Irine Kharisma"]
[Result "0-1"]
[WhiteElo "2033"]
[BlackElo "2358"]
[PlyCount "58"]
[EventDate "2023.07.16"]
[EventType "swiss"]
[EventCountry "SUI"]
[TimeControl "900+5"]

1. d4 {[%emt 0:00:03]} Nf6 {[%emt 0:00:06]} 2. Nf3 {[%emt 0:00:02]} d5 {[%emt 0:00:05]} 3. c4 {[%emt 0:00:03]} e6 {[%emt 0:00:05]} 4. g3 {[%emt 0:00:01]} dxc4 {[%emt 0:00:08]} 5. Bg2 {[%emt 0:00:06]} Bb4+ {[%emt 0:00:10]} 6. Bd2 {[%emt 0:00:03]} c5 {[%emt 0:00:10]} 7. O-O {[%emt 0:01:30]} O-O {[%emt 0:00:16]} 8. Qc2 {[%emt 0:01:33]} Bxd2 {[%emt 0:00:36]} 9. Nbxd2 {[%emt 0:00:02]} cxd4 {[%emt 0:00:05]} 10. Nxc4 {[%emt 0:00:02]} Nc6 {[%emt 0:00:04]} 11. Rfd1 {[%emt 0:00:10]} Re8 {[%emt 0:02:10]} 12. Nfe5 {[%emt 0:00:23]} Nxe5 {[%emt 0:00:08]} 13. Nxe5 {[%emt 0:00:02]} Qa5 {[%emt 0:00:25]} 14. f4 {[%emt 0:01:23]} Qb6 {[%emt 0:00:58]} 15. Rd3 {[%emt 0:00:11]} Bd7 {[%emt 0:00:19]} 16. Nxd7 {[%emt 0:00:45]} Nxd7 {[%emt 0:00:02]} 17. Rc1 {[%emt 0:00:05]} e5 {[%emt 0:02:38]} 18. Qc7 {[%emt 0:01:15]} Qxb2 {[%emt 0:00:12]} 19. Rb3 {[%emt 0:00:14]} Qd2 {[%emt 0:01:06]} 20. Bxb7 {[%emt 0:02:11]} Rad8 {[%emt 0:00:18]} 21. Bd5 {[%emt 0:00:58]} exf4 {[%emt 0:00:38]} 22. Rf1 {[%emt 0:00:43]} Ne5 {[%emt 0:00:46]} 23. gxf4 {[%emt 0:00:45]} Rxd5 {[%emt 0:01:08]} 24. fxe5 {[%emt 0:00:06]} Qg5+ {[%emt 0:00:12]} 25. Rg3 {[%emt 0:00:55]} Qe7 {[%emt 0:00:14]} 26. Qc4 {[%emt 0:00:30]} Qxe5 {[%emt 0:00:32]} 27. Rgf3 {[%emt 0:00:39]} Qe6 {[%emt 0:00:31]} 28. Qc7 {[%emt 0:01:07]} Rg5+ {[%emt 0:00:36]} 29. Kh1 {[%emt 0:00:12]} f6 {[%emt 0:00:09]} 0-1